fUSD/lending_fUSD_20250213
["ID","MTS","AMOUNT","RATE_DAILY","PERIOD"]
[352912286,1739416256730,-516.20724917,0.00016438,2]
[352912287,1739416256740,-500.0,0.00016438,2]
[352912288,1739416256749,-500.0,0.00016438,2]
[352912289,1739416256758,-500.0,0.00016438,2]
[352912290,1739416256768,-517.61052127,0.00016438,2]
[352912291,1739416256779,-500.0,0.00016438,2]
[352912292,1739416256790,-500.0,0.00016438,2]
[352912293,1739416256800,-500.0,0.00016438,2]
[352912294,1739416256811,-500.0,0.00016438,2]
[352912295,1739416256821,-500.0,0.00016438,2]
[352912296,1739416256832,-1754.99,0.00016438,2]
[352912297,1739416256843,-500.0,0.00016438,2]
[352912298,1739416256852,-500.0,0.00016438,2]
[352912299,1739416256864,-3300.12,0.00016438,2]
[352912300,1739416256874,-500.0,0.00016438,2]
[352912301,1739416256886,-500.0,0.00016438,2]
[352912302,1739416256897,-1022.51,0.00016438,2]
[352912303,1739416256908,-1981.93,0.00016438,2]
[352912304,1739416256919,-2234.04,0.00016438,2]
[352912305,1739416256929,-500.0,0.00016438,2]
[352912306,1739416256940,-2850.28,0.00016438,2]
[352912307,1739416256951,-665.44,0.00016438,2]
[352912308,1739416256961,-500.0,0.00016438,2]
[352912309,1739416256973,-1414.08,0.00016438,2]
[352912310,1739416256985,-500.0,0.00016438,2]
[352912311,1739416256995,-2168.12,0.00016438,2]
[352912312,1739416257005,-1541.11,0.00016438,2]
[352912313,1739416257015,-500.0,0.00016438,2]
[352912314,1739416257026,-500.0,0.00016438,2]
[352912315,1739416257036,-1398.75,0.00016438,2]
[352912316,1739416257047,-500.0,0.00016438,2]
[352912317,1739416257058,-1807.27,0.00016438,2]
[352912318,1739416257069,-500.0,0.00016438,2]
[352912319,1739416257078,-1831.09532,0.00016438,2]
[352912320,1739416257088,-819.46,0.00016438,2]
[352912321,1739416257099,-542.57031363,0.00016438,2]
[352912322,1739416257111,-500.0,0.00016438,2]
[352912323,1739416257121,-585.82,0.00016438,2]
[352912324,1739416257131,-2095.55,0.00016438,2]
[352912325,1739416257140,-500.0,0.00016438,2]
[352912326,1739416257150,-704.76,0.00016438,2]
[352912327,1739416257160,-2437.95,0.00016438,2]
[352912328,1739416257170,-2389.02,0.00016438,2]
[352912329,1739416257179,-500.0,0.00016438,2]
[352912330,1739416257191,-1115.17,0.00016438,2]
[352912331,1739416257201,-500.0,0.00016438,2]
[352912332,1739416257211,-896.21,0.00016438,2]
[352912333,1739416257223,-500.0,0.00016438,2]
[352912334,1739416257234,-500.0,0.00016438,2]
[352912335,1739416257244,-1015.8,0.00016438,2]
[352912336,1739416257253,-503.75970785,0.00016438,2]
[352912337,1739416257264,-1296.26,0.00016438,2]
[352912338,1739416257275,-185.74155,0.00016438,2]
[352912339,1739416257286,-500.0,0.00016438,2]
[352912340,1739416257296,-725.59,0.00016438,2]
[352912341,1739416257305,-1317.75,0.00016438,2]
[352912342,1739416257315,-500.0,0.00016438,2]
[352912343,1739416257328,-500.0,0.00016438,2]
[352912344,1739416257337,-500.0,0.00016438,2]
[352912345,1739416257349,-990.9,0.00016438,2]
[352912346,1739416257366,-2689.69,0.00016438,2]
[352912347,1739416257376,-500.0,0.00016438,2]
[352912348,1739416257386,-500.0,0.00016438,2]
[352912349,1739416257395,-1291.87,0.00016438,2]
[352912350,1739416257406,-1787.17,0.00016438,2]
[352912351,1739416257416,-500.0,0.00016438,2]
[352912352,1739416257425,-500.0,0.00016438,2]
[352912353,1739416257435,-500.0,0.00016438,2]
[352912354,1739416257445,-2495.52,0.00016438,2]
[352912355,1739416257454,-500.0,0.00016438,2]
[352912356,1739416257463,-500.0,0.00016438,2]
[352912357,1739416257474,-793.82,0.00016438,2]
[352912358,1739416257483,-1074.92,0.00016438,2]
[352912359,1739416257493,-583.62,0.00016438,2]
[352912360,1739416257502,-500.0,0.00016438,2]
[352912361,1739416257512,-1545.36,0.00016438,2]
[352912362,1739416257521,-500.0,0.00016438,2]
[352912363,1739416257531,-975.84,0.00016438,2]
[352912364,1739416257540,-500.0,0.00016438,2]
[352912365,1739416257551,-2897.29,0.00016438,2]
[352912366,1739416257561,-1700.46,0.00016438,2]
[352912367,1739416257570,-510.38018142,0.00016438,2]
[352912368,1739416257579,-500.0,0.00016438,2]
[352912369,1739416257588,-2664.88,0.00016438,2]
[352912370,1739416257598,-1010.98,0.00016438,2]
[352912371,1739416257607,-500.0,0.00016438,2]
[352912372,1739416257616,-598.17,0.00016438,2]
[352912373,1739416257626,-500.0,0.00016438,2]
[352912374,1739416257637,-500.0,0.00016438,2]
[352912375,1739416257646,-500.0,0.00016438,2]
[352912376,1739416257656,-2264.01,0.00016438,2]
[352912377,1739416257667,-500.0,0.00016438,2]
[352912378,1739416257676,-500.0,0.00016438,2]
[352912379,1739416257688,-369.80155673,0.00016438,2]
[352912380,1739416257699,-500.0,0.00016438,2]
[352912381,1739416257709,-229.18793541,0.00016438,2]
[352912382,1739416257719,-500.0,0.00016438,2]
[352912383,1739416257728,-1386.83,0.00016438,2]
[352912384,1739416257738,-500.0,0.00016438,2]
[352912385,1739416257747,-821.25,0.00016438,2]
[352912386,1739416257756,-500.0,0.00016438,2]
[352912387,1739416257766,-2524.37,0.00016438,2]
[352912388,1739416257775,-2031.19,0.00016438,2]
[352912389,1739416257784,-500.0,0.00016438,2]
[352912390,1739416257794,-1826.52,0.00016438,2]
[352912391,1739416257804,-500.0,0.00016438,2]
[352912392,1739416257815,-500.0,0.00016438,2]
[352912393,1739416257825,-1819.18,0.00016438,2]
[352912394,1739416257835,-1284.17,0.00016438,2]
[352912395,1739416257844,-2089.44,0.00016438,2]
[352912396,1739416257855,-2171.13,0.00016438,2]
[352912397,1739416257866,-500.0,0.00016438,2]
[352912398,1739416257876,-909.09,0.00016438,2]
[352912399,1739416257888,-265.846559,0.00016438,2]
[352912400,1739416257900,-1696.01,0.00016438,2]
[352912401,1739416257909,-265.846559,0.00016438,2]
[352912402,1739416257921,-3419.83,0.00016438,2]
[352912403,1739416257932,-265.846559,0.00016438,2]
[352912404,1739416257942,-2753.5,0.00016438,2]
[352912405,1739416257953,-265.846559,0.00016438,2]
[352912406,1739416257963,-500.0,0.00016438,2]
[352912407,1739416257973,-4313.57,0.00016438,2]
[352912408,1739416257983,-500.0,0.00016438,2]
[352912409,1739416257992,-265.846559,0.00016438,2]
[352912410,1739416258003,-500.0,0.00016438,2]
[352912411,1739416258013,-265.846559,0.00016438,2]
[352912412,1739416258023,-265.846559,0.00016438,2]
[352912413,1739416258033,-344.76288162,0.00016438,2]
[352912414,1739416258044,-500.0,0.00016438,2]
[352912415,1739416258056,-4045.93,0.00016438,2]
[352912416,1739416258067,-265.846559,0.00016438,2]
[352912417,1739416258218,-500.0,0.00016438,2]
[352912418,1739416258227,-500.0,0.00016438,2]
[352912419,1739416258237,-1367.98,0.00016438,2]
[352912420,1739416258246,-646.12,0.00016438,2]
[352912421,1739416258255,-499.17843846,0.00016438,2]
[352912422,1739416258272,-572.4865023,0.00016438,2]
[352912423,1739416258285,-678.37505924,0.00016438,2]
[352912424,1739416258294,-153.07188363,0.00016438,2]
[352912425,1739416258303,-169.56148205,0.00016438,2]
[352912426,1739416258315,-1848.34851795,0.00016438,2]
[352912427,1739416258324,-500.0,0.00016438,2]
[352912428,1739416258334,-500.0,0.00016438,2]
[352912429,1739416258343,-500.0,0.00016438,2]
[352912430,1739416258354,-500.0,0.00016438,2]
[352912431,1739416258370,-500.0,0.00016438,2]
[352912432,1739416258380,-2822.06,0.00016438,2]
[352912433,1739416258390,-705.22,0.00016438,2]
[352912434,1739416258403,-500.0,0.00016438,2]
[352912435,1739416258412,-1083.61,0.00016438,2]
[352912436,1739416258422,-500.0,0.00016438,2]
[352912437,1739416258433,-1294.94,0.00016438,2]
[352912438,1739416258443,-500.0,0.00016438,2]
[352912439,1739416258453,-4062.17,0.00016438,2]
[352912440,1739416258462,-7057.14905035,0.00016438,2]
[352912441,1739416258480,-1443.64072596,0.00016438,2]
[352912442,1739416258492,-210.65022369,0.00016438,2]
[352912443,1739416258501,-414.233134,0.00016438,2]
[352912444,1739416258511,-500.0,0.00016438,2]
[352912445,1739416258520,-604.71,0.00016438,2]
[352912446,1739416258529,-414.233134,0.00016438,2]
[352912447,1739416258539,-1731.25,0.00016438,2]
[352912448,1739416258548,-414.233134,0.00016438,2]
[352912449,1739416258557,-414.233134,0.00016438,2]
[352912450,1739416258567,-376.05726031,0.00016438,2]
[352912451,1739416258577,-1696.1313,0.00016438,2]
[352912452,1739416258589,-289.937,0.00016438,2]
[352912453,1739416258601,-994.68443969,0.00016438,2]
[352912454,1739416258610,-500.0,0.00016438,2]
[352912455,1739416258619,-2438.13,0.00016438,2]
[352912456,1739416258629,-500.0,0.00016438,2]
[352912457,1739416258638,-1117.08556031,0.00016438,2]
[352912458,1739416258649,-676.92443969,0.00016438,2]
[352912459,1739416258659,-448.07551531,0.00016438,2]
[352912460,1739416258675,-184.25520669,0.00016438,2]
[352912461,1739416258684,-500.0,0.00016438,2]
[352912462,1739416258693,-632.330722,0.00016438,2]
[352912463,1739416258703,-1130.31,0.00016438,2]
[352912464,1739416258712,-2959.53,0.00016438,2]
[352912465,1739416258723,-632.330722,0.00016438,2]
[352912466,1739416258732,-632.330722,0.00016438,2]
[352912467,1739416258742,-414.233134,0.00016438,2]
[352912468,1739416258752,-414.233134,0.00016438,2]
[352912469,1739416258761,-2237.35,0.00016438,2]
[352912470,1739416258771,-414.233134,0.00016438,2]
[352912471,1739416258780,-583.69,0.00016438,2]
[352912472,1739416258789,-414.233134,0.00016438,2]
[352912473,1739416258799,-500.0,0.00016438,2]
[352912474,1739416258808,-632.330722,0.00016438,2]
[352912475,1739416258818,-632.330722,0.00016438,2]
[352912476,1739416258827,-632.330722,0.00016438,2]
[352912477,1739416258836,-632.330722,0.00016438,2]
[352912478,1739416258845,-500.0,0.00016438,2]
[352912479,1739416258855,-500.0,0.00016438,2]
[352912480,1739416258864,-121.61720331,0.00016438,2]
[352912481,1739416258876,-378.38279669,0.00016438,2]
[352912482,1739416258885,-297.04215831,0.00016438,2]
[352912483,1739416258897,-640.65784169,0.00016438,2]
[352912484,1739416258906,-502.96630958,0.00016438,2]
[352912485,1739416258916,-500.0,0.00016438,2]
[352912486,1739416258925,-2295.67,0.00016438,2]
[352912487,1739416258934,-516.08245414,0.00016438,2]
[352912488,1739416258943,-2780.53,0.00016438,2]
[352912489,1739416258952,-502.55644691,0.00016438,2]
[352912490,1739416258961,-500.0,0.00016438,2]
[352912491,1739416258971,-3113.39,0.00016438,2]
[352912492,1739416258980,-500.0,0.00016438,2]
[352912493,1739416258990,-500.0,0.00016438,2]
[352912494,1739416258999,-975.97,0.00016438,2]
[352912495,1739416259010,-2225.72,0.00016438,2]
[352912496,1739416259027,-1111.02,0.00016438,2]
[352912497,1739416259047,-500.0,0.00016438,2]
[352912498,1739416259057,-500.0,0.00016438,2]
[352912499,1739416259084,-2263.2,0.00016438,2]
[352912500,1739416259103,-1717.42,0.00016438,2]
[352912501,1739416259124,-1123.45,0.00016438,2]
[352912502,1739416259146,-2494.45,0.00016438,2]
[352912503,1739416259164,-5223.06,0.00016438,2]
[352912504,1739416259187,-2500.24,0.00016438,2]
[352912505,1739416259210,-500.0,0.00016438,2]
[352912506,1739416259230,-693.83,0.00016438,2]
[352912507,1739416259252,-500.0,0.00016438,2]
[352912508,1739416259274,-778.22,0.00016438,2]
[352912509,1739416259295,-538.64686045,0.00016438,2]
[352912510,1739416259311,-500.0,0.00016438,2]
[352912511,1739416259333,-500.0,0.00016438,2]
[352912512,1739416259349,-1934.2,0.00016438,2]
[352912513,1739416259374,-1322.43,0.00016438,2]
[352912514,1739416259394,-3962.22,0.00016438,2]
[352912515,1739416259413,-500.0,0.00016438,2]
[352912516,1739416259432,-500.0,0.00016438,2]
[352912517,1739416259451,-2862.13,0.00016438,2]
[352912518,1739416259468,-500.0,0.00016438,2]
[352912519,1739416259486,-2535.63,0.00016438,2]
[352912520,1739416259505,-1436.38330849,0.00016438,2]
[352912521,1739416259525,-328.72369512,0.00016438,2]
[352912522,1739416259546,-71.41299639,0.00016438,2]
[352912523,1739416259564,-432.19966971,0.00016438,2]
[352912524,1739416259585,-67.80033029,0.00016438,2]
[352912525,1739416259602,-4554.56,0.00016438,2]
[352912526,1739416259619,-500.0,0.00016438,2]
[352912527,1739416259637,-3006.41,0.00016438,2]
[352912528,1739416259655,-500.0,0.00016438,2]
[352912529,1739416259673,-500.0,0.00016438,2]
[352912530,1739416259692,-500.0,0.00016438,2]
[352912531,1739416259711,-151.0,0.00016438,2]
[352912532,1739416259729,-151.0,0.00016438,2]
[352912533,1739416259747,-151.0,0.00016438,2]
[352912534,1739416259765,-151.0,0.00016438,2]
[352912535,1739416259783,-985.66,0.00016438,2]
[352912536,1739416259802,-4058.53,0.00016438,2]
[352912537,1739416259819,-151.0,0.00016438,2]
[352912538,1739416259838,-151.0,0.00016438,2]
[352912539,1739416259855,-500.0,0.00016438,2]
[352912540,1739416259874,-151.0,0.00016438,2]
[352912541,1739416259893,-3683.34,0.00016438,2]
[352912542,1739416259909,-500.0,0.00016438,2]
[352912543,1739416259927,-151.0,0.00016438,2]
[352912544,1739416259944,-4693.72,0.00016438,2]
[352912545,1739416259961,-500.0,0.00016438,2]
[352912546,1739416259979,-500.0,0.00016438,2]
[352912547,1739416259996,-1520.92,0.00016438,2]
[352912548,1739416260015,-1413.42,0.00016438,2]
[352912549,1739416260033,-277.83258801,0.00016438,2]
[352912550,1739416260049,-5664.23,0.00016438,2]
[352912551,1739416260067,-500.0,0.00016438,2]
[352912552,1739416260085,-500.0,0.00016438,2]
[352912553,1739416260102,-500.0,0.00016438,2]
[352912554,1739416260119,-1807.47,0.00016438,2]
[352912555,1739416260136,-501.50402344,0.00016438,2]
[352912556,1739416260154,-4088.11,0.00016438,2]
[352912557,1739416260170,-500.0,0.00016438,2]
[352912558,1739416260188,-500.0,0.00016438,2]
[352912559,1739416260205,-500.0,0.00016438,2]
[352912560,1739416260222,-4243.57,0.00016438,2]
[352912561,1739416260240,-10604.32,0.00016438,2]
[352912562,1739416260256,-500.0,0.00016438,2]
[352912563,1739416260275,-500.0,0.00016438,2]
[352912564,1739416260292,-2747.25,0.00016438,2]
[352912565,1739416260309,-500.0,0.00016438,2]
[352912566,1739416260327,-151.0,0.00016438,2]
[352912567,1739416260345,-500.0,0.00016438,2]
[352912568,1739416260366,-151.0,0.00016438,2]
[352912569,1739416260384,-151.0,0.00016438,2]
[352912570,1739416260402,-1007.13,0.00016438,2]
[352912571,1739416260415,-151.0,0.00016438,2]
[352912572,1739416260425,-498.44917594,0.00016438,2]
[352912573,1739416260435,-800.29,0.00016438,2]
[352912574,1739416260446,-937.48,0.00016438,2]
[352912575,1739416260456,-500.0,0.00016438,2]
[352912576,1739416260466,-501.35010191,0.00016438,2]
[352912577,1739416260476,-500.0,0.00016438,2]
[352912578,1739416260487,-887.15,0.00016438,2]
[352912579,1739416260497,-151.0,0.00016438,2]
[352912580,1739416260506,-151.0,0.00016438,2]
[352912581,1739416260516,-151.0,0.00016438,2]
[352912582,1739416260526,-151.0,0.00016438,2]
[352912583,1739416260823,-6989.57,0.00016438,2]
[352912584,1739416260863,-300.19284124,0.00016438,2]
[352912585,1739416260883,-501.44354909,0.00016438,2]
[352912586,1739416260894,-500.0,0.00016438,2]
[352912587,1739416260904,-500.0,0.00016438,2]
[352912588,1739416260916,-2903.63,0.00016438,2]
[352912589,1739416260927,-500.0,0.00016438,2]
[352912590,1739416260939,-500.0,0.00016438,2]
[352912591,1739416260949,-2408.97,0.00016438,2]
[352912592,1739416260958,-500.0,0.00016438,2]
[352912593,1739416260968,-3226.87,0.00016438,2]
[352912594,1739416260978,-500.0,0.00016438,2]
[352912595,1739416260988,-1024.27,0.00016438,2]
[352912596,1739416260997,-500.0,0.00016438,2]
[352912597,1739416261007,-940.8,0.00016438,2]
[352912598,1739416261018,-828.73,0.00016438,2]
[352912599,1739416261029,-500.0,0.00016438,2]
[352912600,1739416261040,-727.85,0.00016438,2]
[352912601,1739416261051,-500.0,0.00016438,2]
[352912602,1739416261061,-1348.16,0.00016438,2]
[352912603,1739416261072,-500.0,0.00016438,2]
[352912604,1739416261082,-3047.19,0.00016438,2]
[352912605,1739416261091,-179.534775,0.00016438,2]
[352912606,1739416261101,-1951.52,0.00016438,2]
[352912607,1739416261112,-500.0,0.00016438,2]
[352912608,1739416261123,-500.0,0.00016438,2]
[352912609,1739416261134,-984.59,0.00016438,2]
[352912610,1739416261145,-2380.07,0.00016438,2]
[352912611,1739416261154,-500.0,0.00016438,2]
[352912612,1739416261165,-500.0,0.00016438,2]
[352912613,1739416261175,-5375.6,0.00016438,2]
[352912614,1739416261184,-500.0,0.00016438,2]
[352912615,1739416261194,-501.66089772,0.00016438,2]
[352912616,1739416261204,-959.64,0.00016438,2]
[352912617,1739416261212,-736.17,0.00016438,2]
[352912618,1739416261222,-500.0,0.00016438,2]
[352912619,1739416261231,-561.07591266,0.00016438,2]
[352912620,1739416261241,-500.0,0.00016438,2]
[352912621,1739416261250,-500.0,0.00016438,2]
[352912622,1739416261259,-500.0,0.00016438,2]
[352912623,1739416261270,-500.0,0.00016438,2]
[352912624,1739416261279,-500.0,0.00016438,2]
[352912625,1739416261289,-500.0,0.00016438,2]
[352912626,1739416261298,-500.0,0.00016438,2]
[352912627,1739416261308,-3968.88,0.00016438,2]
[352912628,1739416261317,-500.0,0.00016438,2]
[352912629,1739416261326,-500.0,0.00016438,2]
[352912630,1739416261336,-500.0,0.00016438,2]
[352912631,1739416261345,-500.0,0.00016438,2]
[352912632,1739416261359,-500.0,0.00016438,2]
[352912633,1739416261368,-500.0,0.00016438,2]
[352912634,1739416261378,-500.0,0.00016438,2]
[352912635,1739416261387,-500.0,0.00016438,2]
[352912636,1739416261397,-500.0,0.00016438,2]
[352912637,1739416261406,-2175.08,0.00016438,2]
[352912638,1739416261415,-500.0,0.00016438,2]
[352912639,1739416261425,-500.0,0.00016438,2]
[352912640,1739416261435,-500.0,0.00016438,2]
[352912641,1739416261444,-497.61239917,0.00016438,2]
[352912642,1739416261455,-500.0,0.00016438,2]
[352912643,1739416261465,-500.0,0.00016438,2]
[352912644,1739416261475,-2182.54,0.00016438,2]
[352912645,1739416261485,-792.28,0.00016438,2]
[352912646,1739416261494,-500.0,0.00016438,2]
[352912647,1739416261504,-5037.8,0.00016438,2]
[352912648,1739416261513,-500.0,0.00016438,2]
[352912649,1739416261523,-2406.02,0.00016438,2]
[352912650,1739416261532,-500.0,0.00016438,2]
[352912651,1739416261543,-750.77,0.00016438,2]
[352912652,1739416261554,-687.98,0.00016438,2]
[352912653,1739416261565,-2305.06,0.00016438,2]
[352912654,1739416261574,-500.0,0.00016438,2]
[352912655,1739416261585,-1205.51,0.00016438,2]
[352912656,1739416261595,-511.39332701,0.00016438,2]
[352912657,1739416261606,-1847.08,0.00016438,2]
[352912658,1739416261616,-500.0,0.00016438,2]
[352912659,1739416261627,-500.0,0.00016438,2]
[352912660,1739416261638,-505.01271562,0.00016438,2]
[352912661,1739416261648,-500.0,0.00016438,2]
[352912662,1739416261658,-4180.94,0.00016438,2]
[352912663,1739416261668,-1018.8,0.00016438,2]
[352912664,1739416261679,-500.0,0.00016438,2]
[352912665,1739416261691,-1597.57739982,0.00016438,2]
[352912666,1739416261706,-42.69260018,0.00016438,2]
[352912667,1739416261715,-542.39939922,0.00016438,2]
[352912668,1739416261727,-191.79060078,0.00016438,2]
[352912669,1739416261737,-500.0,0.00016438,2]
[352912670,1739416261746,-152.714792,0.00016438,2]
[352912671,1739416261755,-206.25927718,0.00016438,2]
[352912672,1739416262649,-607.88072282,0.00016438,2]
[352912673,1739416262658,-500.0,0.00016438,2]
[352912674,1739416262668,-102.32099417,0.00016438,2]
[352912675,1739416262687,-397.67900583,0.00016438,2]
[352912676,1739416262697,-500.0,0.00016438,2]
[352912677,1739416262706,-500.0,0.00016438,2]
[352912678,1739416262716,-500.0,0.00016438,2]
[352912679,1739416262727,-500.0,0.00016438,2]
[352912680,1739416262736,-500.0,0.00016438,2]
[352912681,1739416262746,-500.0,0.00016438,2]
[352912682,1739416262756,-500.0,0.00016438,2]
[352912683,1739416262767,-500.0,0.00016438,2]
[352912684,1739416262776,-500.0,0.00016438,2]
[352912685,1739416262787,-500.0,0.00016438,2]
[352912686,1739416262797,-1582.25,0.00016438,2]
[352912687,1739416262807,-502.61495262,0.00016438,2]
[352912688,1739416262816,-500.0,0.00016438,2]
[352912689,1739416262826,-150.0,0.00016438,2]
[352912690,1739416262835,-151.0,0.0001644,2]
[352912691,1739416262844,-151.0,0.0001644,2]
[352912692,1739416262853,-151.0,0.0001644,2]
[352912693,1739416262863,-151.0,0.0001644,2]
[352912694,1739416262872,-151.0,0.0001644,2]
[352912695,1739416262881,-151.0,0.0001644,2]
[352912696,1739416262890,-370.40572202,0.0001644,2]
[352912697,1739416262900,-370.40572202,0.0001644,2]
[352912698,1739416262909,-370.40572202,0.0001644,2]
[352912699,1739416262919,-370.40572202,0.0001644,2]
[352912700,1739416262928,-370.40572202,0.0001644,2]
[352912701,1739416262937,-370.40572202,0.0001644,2]
[352912702,1739416262949,-370.40572202,0.0001644,2]
[352912703,1739416262959,-370.40572202,0.0001644,2]
[352912704,1739416262970,-370.40572202,0.0001644,2]
[352912705,1739416262979,-370.40572202,0.0001644,2]
[352912706,1739416262990,-370.40572202,0.0001644,2]
[352912707,1739416262999,-370.40572202,0.0001644,2]
[352912708,1739416263009,-370.40572202,0.0001644,2]
[352912709,1739416263018,-370.40572202,0.0001644,2]
[352912710,1739416263028,-370.40572202,0.0001644,2]
[352912711,1739416263039,-370.40572202,0.0001644,2]
[352912712,1739416263049,-370.40572202,0.0001644,2]
[352912713,1739416263058,-370.40572202,0.0001644,2]
[352912714,1739416263068,-370.40572202,0.0001644,2]
[352912715,1739416263077,-370.4,0.0001644,2]
[352912716,1739416263087,-384.29157833,0.0001644,2]
[352912717,1739416263096,-384.29157833,0.0001644,2]
[352912718,1739416263106,-384.29157833,0.0001644,2]
[352912719,1739416263116,-384.29157833,0.0001644,2]
[352912720,1739416263126,-384.29157833,0.0001644,2]
[352912721,1739416263135,-384.29157833,0.0001644,2]
[352912722,1739416263145,-384.29157833,0.0001644,2]
[352912723,1739416263155,-384.29157833,0.0001644,2]
[352912724,1739416263164,-384.29157833,0.0001644,2]
[352912725,1739416263174,-384.29157833,0.0001644,2]
[352912726,1739416263183,-384.29157833,0.0001644,2]
[352912727,1739416263193,-384.29157833,0.0001644,2]
[352912728,1739416263202,-384.29157833,0.0001644,2]
[352912729,1739416263212,-384.29157833,0.0001644,2]
[352912730,1739416263221,-384.29157833,0.0001644,2]
[352912731,1739416263231,-384.29157833,0.0001644,2]
[352912732,1739416263240,-384.29157833,0.0001644,2]
[352912733,1739416263250,-384.29157833,0.0001644,2]
[352912734,1739416263260,-384.29157833,0.0001644,2]
[352912735,1739416263270,-51.8073359,0.0001644,2]
[352912736,1739416263964,-332.4826641,0.0001644,2]
[352912737,1739416263975,-482.20728025,0.0001644,2]
[352912738,1739416263984,-482.20728025,0.0001644,2]
[352912739,1739416263994,-482.20728025,0.0001644,2]
[352912740,1739416264004,-482.20728025,0.0001644,2]
[352912741,1739416264014,-482.20728025,0.0001644,2]
[352912742,1739416264024,-482.20728025,0.0001644,2]
[352912743,1739416264034,-482.20728025,0.0001644,2]
[352912744,1739416264044,-482.20728025,0.0001644,2]
[352912745,1739416264054,-482.20728025,0.0001644,2]
[352912746,1739416264064,-482.20728025,0.0001644,2]
[352912747,1739416264073,-482.20728025,0.0001644,2]
[352912748,1739416264083,-482.20728025,0.0001644,2]
[352912749,1739416264092,-482.20728025,0.0001644,2]
[352912750,1739416264102,-482.20728025,0.0001644,2]
[352912751,1739416264112,-482.20728025,0.0001644,2]
[352912752,1739416264122,-482.20728025,0.0001644,2]
[352912753,1739416264132,-482.20728025,0.0001644,2]
[352912754,1739416264142,-482.20728025,0.0001644,2]
[352912755,1739416264152,-482.20728025,0.0001644,2]
[352912756,1739416264163,-482.2,0.0001644,2]
[352912757,1739416264173,-500.0,0.00016444,2]
[352912758,1739416264183,-500.0,0.00016444,2]
[352912759,1739416264193,-500.0,0.00016444,2]
[352912760,1739416264203,-500.0,0.00016444,2]
[352912761,1739416264214,-306.0,0.00016444,2]
[352912762,1739416264225,-316.26579422,0.00016473,2]
[352912763,1739416264235,-500.0,0.00016473,2]
[352912764,1739416264245,-500.0,0.00016473,2]
[352912765,1739416264255,-501.08654478,0.00016473,2]
[352912766,1739416264265,-500.0,0.00016473,2]
[352912767,1739416264276,-501.73648211,0.00016473,2]
[352912768,1739416264286,-500.90538551,0.00016473,2]
[352912769,1739416264298,-500.0,0.00016473,2]
[352912770,1739416264308,-500.0,0.00016473,2]
[352912771,1739416264318,-500.44241236,0.00016473,2]
[352912772,1739416264328,-33335.00170989,0.0001648,2]
[352912773,1739416264342,-5308.0,0.0001648,2]
[352912774,1739416265282,-220049.30458173,0.0001648,2]
[352912775,1739416265292,-265.42443,0.0001648,2]
[352912776,1739416265302,-151.272029,0.0001648,2]
[352912777,1739416265313,-233.351447,0.0001648,2]
[352912778,1739416265322,-233.351447,0.0001648,2]
[352912779,1739416265332,-283.566594,0.0001648,2]
[352912780,1739416265341,-151.0,0.0001648,2]
[352912781,1739416265352,-189.940055,0.0001648,2]
[352912782,1739416265365,-179.165359,0.0001648,2]
[352912783,1739416265375,-318.389641,0.0001648,2]
[352912784,1739416265384,-318.389641,0.0001648,2]
[352912785,1739416265395,-151.0,0.0001648,2]